bitfinex/quotes_BTCUSD_20241111
["timestamp","ask_amount","ask_price","bid_price","bid_amount"]
[1731335591250,0.005,81964.0,81963.0,0.00607697]
[1731335591470,0.005,81955.0,81954.0,0.122019]
[1731335591695,0.005,81959.0,81955.0,0.244035]
[1731335591913,0.005,81956.0,81955.0,0.122018]
[1731335592364,0.005,81959.0,81958.0,0.122013]
[1731335592572,0.005,81959.0,81949.0,0.000844]
[1731335592573,0.005,81969.0,81968.0,0.121998]
[1731335593280,0.005,81972.0,81964.0,0.013]
[1731335593281,0.01,81965.0,81964.0,0.013]
[1731335593520,0.25794521,81965.0,81964.0,0.013]
[1731335593795,0.132012,81959.0,81958.0,0.012]
[1731335594008,0.132012,81959.0,81949.0,0.000844]
[1731335594009,0.137025,81950.0,81949.0,0.000844]
[1731335594219,0.26796721,81950.0,81949.0,0.000844]
[1731335595307,0.14094221,81950.0,81949.0,0.000844]
[1731335595525,0.01,81950.0,81949.0,0.000844]
[1731335595745,0.31976236,81950.0,81949.0,0.000844]
[1731335595961,0.25796721,81950.0,81949.0,0.000844]
[1731335596429,0.25796721,81950.0,81949.0,0.122871]
[1731335596430,0.01,81950.0,81949.0,0.122871]
[1731335596664,0.01,81950.0,81949.0,0.014844]
[1731335596895,0.01,81950.0,81949.0,0.026844]
[1731335597119,0.01,81950.0,81949.0,0.012844]
[1731335597369,0.01,81950.0,81949.0,0.026844]
[1731335597606,0.01,81950.0,81949.0,0.136871]
[1731335597826,0.01,81950.0,81949.0,0.134871]
[1731335597827,0.005,81950.0,81949.0,0.134871]
[1731335598060,0.42782415,81966.0,81951.0,0.366069]
[1731335598061,0.005,81952.0,81951.0,0.366069]
[1731335598264,0.005,81955.0,81954.0,0.122019]
[1731335598938,0.005,81966.0,81954.0,0.00244024]
[1731335599182,0.255,81984.0,81950.0,0.38922148]
[1731335599183,0.005,81969.0,81968.0,0.121998]
[1731335599386,0.005,81984.0,81960.0,0.38922148]
[1731335599619,0.000692,81987.0,81986.0,0.121972]
[1731335599839,0.005692,81987.0,81986.0,0.121972]
[1731335600279,0.000692,81987.0,81986.0,0.121972]
[1731335600934,0.005692,81987.0,81986.0,0.121972]
[1731335601168,0.005692,81987.0,81986.0,0.133972]
[1731335601373,0.005692,81987.0,81986.0,0.147972]
[1731335601935,0.010692,81987.0,81986.0,0.147972]
[1731335602334,0.005692,81987.0,81986.0,0.147972]
[1731335603120,0.010692,81987.0,81986.0,0.147972]
[1731335603876,0.010692,81987.0,81986.0,0.026]
[1731335604298,0.010692,81987.0,81986.0,0.147972]
[1731335604480,0.010692,81987.0,81986.0,0.026]
[1731335604679,0.005692,81987.0,81986.0,0.147972]
[1731335605987,0.000692,81987.0,81986.0,0.147972]
[1731335606198,0.000692,81987.0,81986.0,0.37635311]
[1731335606418,0.250692,82015.0,81986.0,0.37635311]
[1731335606419,0.18382015,82014.0,81998.0,0.0458]
[1731335606635,0.18382015,82014.0,82013.0,0.121931]
[1731335607049,0.18382015,82014.0,82006.0,0.38922148]
[1731335607050,0.18382015,82014.0,82002.0,0.243896]
[1731335607251,0.18382015,82014.0,81991.0,0.03601786]
[1731335607252,0.18382015,82014.0,81988.0,0.005]
[1731335607461,0.18382015,82014.0,81987.0,0.0751]
[1731335607462,0.000692,82015.0,82002.0,0.18382015]
[1731335607681,0.18382015,82014.0,82003.0,0.00243874]
[1731335607891,0.18382015,82014.0,81993.0,0.18382015]
[1731335607892,0.18382015,82014.0,82013.0,0.012]
[1731335608113,0.000692,82015.0,82011.0,0.121934]
[1731335608319,0.000692,82015.0,82014.0,0.12193]
[1731335608527,0.000692,82015.0,81994.0,0.1]
[1731335608725,0.000692,82015.0,82002.0,0.18382015]
[1731335608931,0.000692,82015.0,81994.0,0.1]
[1731335608932,0.000692,82015.0,82008.0,0.121938]
[1731335609057,0.000692,82015.0,82002.0,0.013]
[1731335609266,0.000692,82015.0,82014.0,0.12193]
[1731335609990,0.000692,82015.0,82014.0,0.2503106]
[1731335610192,0.000692,82015.0,82014.0,0.34787221]
[1731335610348,1e-06,82016.0,82015.0,0.25869201]
[1731335610547,1e-06,82016.0,82015.0,0.78561971]
[1731335610760,0.000692,82031.0,82030.0,0.144906]
[1731335610969,0.0183383,82046.0,82043.0,0.121887]
[1731335610970,0.02,82044.0,82043.0,0.121887]
[1731335611188,0.0183383,82046.0,82045.0,0.149884]
[1731335611392,0.0183383,82046.0,82045.0,0.37782621]
[1731335611610,0.000691,82069.0,82068.0,0.12185]
[1731335611832,0.000691,82069.0,82068.0,0.24779221]
[1731335612279,0.000691,82069.0,82068.0,0.38089152]
[1731335612494,0.18382015,82094.0,82093.0,0.121813]
[1731335612722,0.000691,82098.0,82097.0,0.121807]
[1731335612934,0.000691,82098.0,82097.0,0.24774921]
[1731335613173,0.000691,82098.0,82097.0,0.27574921]
[1731335613598,0.000691,82098.0,82097.0,0.121807]
[1731335613805,0.000691,82098.0,82097.0,0.134807]
[1731335614432,0.24843821,82098.0,82097.0,0.025]
[1731335614655,0.127496,82098.0,82097.0,0.025]
[1731335615060,0.005691,82098.0,82097.0,0.012]
[1731335615263,0.000691,82098.0,82097.0,0.133807]
[1731335615476,0.000691,82098.0,82097.0,0.146807]
[1731335615689,0.000691,82098.0,82097.0,0.32734769]
[1731335615918,0.000691,82098.0,82097.0,0.88193347]
[1731335616125,0.000691,82098.0,82097.0,0.46854921]
[1731335616354,0.01339,82112.0,82097.0,0.46854921]
[1731335616355,0.01339,82112.0,82111.0,0.126786]
[1731335616569,0.01339,82112.0,82111.0,0.27572821]
[1731335616772,0.01339,82112.0,82111.0,0.66494969]
[1731335617625,0.01339,82112.0,82111.0,0.27572821]
[1731335617829,0.01339,82112.0,82111.0,0.27772821]
[1731335618024,0.0016,82124.0,82123.0,0.149768]
[1731335618242,0.0802,82173.0,82123.0,0.149768]
[1731335618243,0.18882015,82163.0,82141.0,0.243483]
[1731335618444,0.18382015,82154.0,82149.0,0.12173]
[1731335618652,0.121721,82156.0,82147.0,0.121732]
[1731335618876,0.005,82163.0,82149.0,0.12173]
[1731335619291,0.32359,82173.0,82149.0,0.12173]
[1731335619292,0.243408,82167.0,82149.0,0.12173]
[1731335619492,0.243404,82168.0,82149.0,0.12173]
[1731335619493,0.121702,82168.0,82149.0,0.12173]
[1731335619701,0.243404,82168.0,82149.0,0.12173]
[1731335619905,0.005,82169.0,82149.0,0.12173]
[1731335620167,0.005,82169.0,82149.0,0.13473]
[1731335620379,0.25,82183.0,82149.0,0.13473]
[1731335620380,0.243349,82187.0,82149.0,0.59592953]
[1731335620583,0.248327,82194.0,82160.0,0.005]
[1731335620584,0.243341,82189.0,82160.0,0.005]
[1731335620789,0.243341,82189.0,82169.0,0.1217]
[1731335620790,0.18382015,82170.0,82169.0,0.1217]
[1731335620992,0.18382015,82188.0,82169.0,0.12594221]
[1731335621198,0.005,82176.0,82158.0,0.38922148]
[1731335621413,0.005,82176.0,82161.0,0.243424]
[1731335621807,0.243385,82174.0,82162.0,0.12594221]
[1731335622007,0.1217,82169.0,82162.0,0.12594221]
[1731335622220,0.12669,82176.0,82164.0,0.121707]
[1731335622436,0.000691,82177.0,82165.0,0.12594221]
[1731335622861,0.005691,82177.0,82170.0,0.121697]
[1731335623071,0.005691,82177.0,82176.0,0.18382015]
[1731335623276,0.000691,82177.0,82166.0,0.005]
[1731335623490,0.000691,82177.0,82176.0,0.24763221]
[1731335623911,0.000691,82177.0,82176.0,0.27806557]
[1731335624110,0.000691,82177.0,82176.0,0.25006506]
[1731335624237,0.000691,82177.0,82176.0,0.68226222]
[1731335624441,0.000691,82177.0,82176.0,0.66485369]
[1731335624644,0.000691,82177.0,82176.0,0.71026222]
[1731335624870,0.000691,82177.0,82176.0,0.72226222]
[1731335625073,0.000691,82177.0,82176.0,0.71026222]
[1731335625457,0.000691,82177.0,82176.0,0.66185369]
[1731335625661,0.000691,82177.0,82176.0,0.64985369]
[1731335625882,0.000691,82177.0,82176.0,0.26063221]
[1731335626087,0.000691,82177.0,82176.0,0.64985369]
[1731335626623,0.000691,82177.0,82176.0,0.24763221]
[1731335626830,0.000691,82177.0,82176.0,0.68628916]
[1731335627192,0.000691,82177.0,82176.0,0.1729445]
[1731335627400,0.000691,82177.0,82176.0,0.24763221]
[1731335627596,0.000691,82177.0,82176.0,0.12594221]
[1731335627829,0.000691,82177.0,82176.0,0.24763221]
[1731335627958,0.000691,82177.0,82176.0,0.12169]
[1731335628166,0.000691,82177.0,82176.0,0.013]
[1731335628422,0.000691,82177.0,82176.0,0.13469]
[1731335628565,0.000691,82177.0,82176.0,0.25006558]
[1731335628779,0.000691,82177.0,82176.0,0.24763221]
[1731335628980,0.000691,82177.0,82176.0,0.3076345]
[1731335629204,0.000691,82177.0,82176.0,0.26063221]
[1731335629411,0.000691,82177.0,82176.0,0.12169]
[1731335629612,0.000691,82177.0,82176.0,0.31981911]
[1731335629830,0.000691,82177.0,82176.0,0.3798214]
[1731335630028,0.000691,82177.0,82176.0,0.3356345]
[1731335630238,0.000691,82177.0,82176.0,0.26063221]
[1731335630587,0.000691,82177.0,82176.0,0.13469]
[1731335631226,0.000691,82177.0,82176.0,0.24763221]
[1731335631483,0.000691,82177.0,82176.0,0.26063221]
[1731335631665,0.000691,82177.0,82176.0,0.26306544]
[1731335631879,0.000691,82177.0,82176.0,0.25006544]
[1731335632091,0.000691,82177.0,82176.0,0.27806544]
[1731335632300,0.000691,82177.0,82176.0,0.33281911]
[1731335632521,0.000691,82195.0,82194.0,0.121663]
[1731335632751,0.000691,82195.0,82194.0,0.24760521]
[1731335633381,0.000691,82195.0,82194.0,0.121663]
[1731335633789,0.000691,82195.0,82194.0,0.24760521]
[1731335634361,0.0176473,82210.0,82194.0,0.27560521]
[1731335634569,0.25,82241.0,82194.0,0.27560521]
[1731335634570,0.06005921,82313.0,82195.0,0.023]
[1731335634774,0.12028578,82377.0,82230.0,0.72997585]
[1731335634993,60.00106,82400.0,82224.0,0.002]
[1731335634994,0.01110262,82340.0,82339.0,0.005]
[1731335635190,0.0181795,82464.0,82397.0,0.005]
[1731335635462,0.03514193,82503.0,82397.0,0.005]
[1731335635463,0.5,82507.0,82437.0,0.38922148]
[1731335635638,0.0525916,82549.0,82455.0,0.005]
[1731335635639,0.01103928,82477.0,82455.0,0.005]
[1731335635797,0.121204,82505.0,82449.0,0.005]
[1731335635993,0.242474,82483.0,82437.0,0.005]
[1731335636215,0.5,82493.0,82445.0,0.005]
[1731335636412,0.38922148,82481.0,82464.0,0.005]
[1731335636638,0.93872148,82494.0,82461.0,0.72997585]
[1731335636834,0.00242498,82493.0,82452.0,0.005]
[1731335637039,0.00242498,82493.0,82425.0,0.002]
[1731335637040,0.72997585,82480.0,82447.0,0.005]
[1731335637257,0.00242498,82479.0,82437.0,0.005]
[1731335637475,0.00242498,82479.0,82425.0,0.485286]
[1731335637476,0.38922148,82469.0,82427.0,0.005]
[1731335637682,0.00242498,82468.0,82425.0,0.01]
[1731335637929,0.0302208,82468.0,82443.0,0.005]
[1731335638151,1.4990172,82496.0,82433.0,0.005]
[1731335638152,0.72997585,82490.0,82482.0,0.242475]
[1731335638356,0.72997585,82490.0,82455.0,0.12594221]
[1731335638357,0.72997585,82490.0,82458.0,0.00458292]
[1731335638562,0.38922148,82498.0,82469.0,0.242515]
[1731335638769,0.38922148,82498.0,82466.0,0.005]
[1731335638770,0.72997585,82502.0,82485.0,0.121233]
[1731335639002,0.72997585,82511.0,82481.0,0.24248]
[1731335639003,0.72997585,82511.0,82488.0,0.005]
[1731335639219,0.72997585,82511.0,82486.0,0.121232]
[1731335639420,0.08785456,82519.0,82493.0,0.72997585]
[1731335639625,0.72997585,82506.0,82494.0,0.12594221]
[1731335639825,0.38922148,82507.0,82499.0,0.72997585]
[1731335640219,0.08785456,82519.0,82494.0,0.12594221]
[1731335640396,0.08785456,82519.0,82495.0,0.18923092]
[1731335640607,0.242386,82513.0,82485.0,0.18180716]
[1731335640821,0.08785456,82519.0,82496.0,0.18180716]
[1731335641032,0.005689,82521.0,82497.0,0.18180716]
[1731335641033,0.00242498,82518.0,82497.0,0.18180716]
[1731335641262,0.005,82496.0,82461.0,0.18180716]
[1731335641456,0.25,82512.0,82479.0,0.18180716]
[1731335641457,0.121241,82480.0,82479.0,0.18180716]
[1731335641671,1.09904135,82506.0,82451.0,0.18180716]
[1731335641672,0.005,82475.0,82451.0,0.18180716]
[1731335641879,0.121282,82452.0,82451.0,0.18180716]
[1731335642087,0.1,82467.0,82426.0,0.005]
[1731335642329,0.1,82467.0,82425.0,0.0475]
[1731335642330,0.005,82472.0,82452.0,0.121282]
[1731335642582,0.005,82472.0,82425.0,0.0475]
[1731335642583,0.18180716,82469.0,82467.0,0.005]
[1731335642844,0.18180716,82478.0,82448.0,0.005]
[1731335642845,0.18180716,82478.0,82473.0,0.002]
[1731335643014,0.18180716,82478.0,82469.0,0.242514]
[1731335643214,0.121229,82489.0,82465.0,0.005]
[1731335643448,0.18180716,82485.0,82475.0,0.002]
[1731335643660,0.18180716,82485.0,82439.0,0.002]
[1731335643661,0.005,82462.0,82439.0,0.002]
[1731335643860,0.005,82474.0,82451.0,0.13094221]
[1731335644102,0.2465,82500.0,82462.0,0.005]
[1731335644103,0.18180716,82480.0,82462.0,0.005]
[1731335644308,0.18180716,82471.0,82467.0,0.005]
[1731335644537,0.005,82502.0,82485.0,0.002]
[1731335644803,0.0193146,82549.0,82547.0,0.12017912]
[1731335644996,0.00198663,82567.0,82560.0,0.121124]
[1731335645410,0.00198663,82567.0,82560.0,0.00241462]
[1731335645615,0.00198663,82567.0,82550.0,0.002]
[1731335645826,0.00198663,82567.0,82540.0,0.25841144]
[1731335646048,0.00198663,82567.0,82566.0,0.128115]
[1731335646247,0.00198663,82567.0,82560.0,0.0489]
[1731335646471,0.00198663,82567.0,82524.0,0.04120622]
[1731335646472,0.72671338,82640.0,82609.0,0.0591]
[1731335646693,0.72671338,82619.0,82618.0,0.121038]
[1731335646926,0.72671338,82619.0,82610.0,0.0489]
[1731335647126,0.72671338,82619.0,82567.0,0.002]
[1731335647127,0.005,82620.0,82587.0,0.005]
[1731335647332,0.24582598,82636.0,82577.0,0.0468]
[1731335647333,0.00379898,82636.0,82580.0,0.005]
[1731335647536,0.00379898,82636.0,82565.0,0.5]
[1731335647537,0.00379898,82636.0,82595.0,0.0471]
[1731335647750,0.121034,82621.0,82595.0,0.0471]
[1731335647965,0.005,82627.0,82595.0,0.0471]
[1731335648169,0.005,82625.0,82595.0,0.0471]
[1731335648387,0.0001,82635.0,82596.0,0.02542008]
[1731335648530,0.0001,82635.0,82609.0,0.005]
[1731335648743,0.0001,82635.0,82610.0,0.02618074]
[1731335648946,0.0001,82635.0,82604.0,0.005]
[1731335649158,0.0001,82635.0,82605.0,0.00325048]
[1731335649355,0.0001,82635.0,82617.0,0.002]
[1731335649711,0.005,82624.0,82584.0,0.0771]
[1731335649842,0.005,82624.0,82578.0,0.002]
[1731335649843,0.005,82601.0,82548.0,0.0771]
[1731335650055,0.121103,82574.0,82558.0,0.005]
[1731335650236,1.5,82587.0,82552.0,0.002]
[1731335650436,0.72671338,82585.0,82567.0,0.00242136]
[1731335650665,0.005,82600.0,82584.0,0.12594221]
[1731335650870,0.005,82600.0,82563.0,0.002]
[1731335650871,0.72671338,82593.0,82563.0,0.002]
[1731335651079,0.242157,82591.0,82563.0,0.002]
[1731335651306,0.72671338,82582.0,82563.0,0.002]
[1731335651507,0.18165854,82570.0,82540.0,0.30501144]
[1731335651718,0.247195,82578.0,82541.0,0.00242189]
[1731335651917,0.247195,82578.0,82540.0,0.30301144]
[1731335651918,0.121151,82541.0,82540.0,0.30301144]
[1731335652091,0.005,82587.0,82551.0,0.005]
[1731335652443,0.005,82587.0,82540.0,0.25641144]
[1731335652444,0.18165854,82561.0,82552.0,0.00837275]
[1731335652648,0.121096,82579.0,82549.0,0.007]
[1731335652792,0.005,82568.0,82540.0,0.25841144]
[1731335653000,0.18165854,82570.0,82542.0,0.12594221]
[1731335653001,0.1,82569.0,82542.0,0.12594221]
[1731335653181,0.005,82550.0,82546.0,0.12594221]
[1731335653382,0.005,82581.0,82558.0,0.005]
[1731335653590,0.005,82581.0,82551.0,0.002]
[1731335653591,0.18165854,82567.0,82551.0,0.002]
[1731335653839,0.18165854,82576.0,82554.0,0.005]
[1731335653840,0.242204,82575.0,82554.0,0.005]
[1731335654063,0.18165854,82576.0,82566.0,0.002]
[1731335654327,0.18165854,82576.0,82530.0,0.002]
[1731335654328,0.005,82503.0,82478.0,0.002]
[1731335654532,0.005,82503.0,82429.0,0.8]
[1731335654533,0.005,82496.0,82434.0,0.02401472]
[1731335654785,0.005,82524.0,82415.0,0.048]
[1731335654786,0.005,82488.0,82457.0,0.002839]
[1731335654982,0.72664737,82486.0,82457.0,0.002839]
[1731335655190,0.72664737,82486.0,82459.0,0.002]
[1731335655399,0.247437,82496.0,82458.0,0.05821098]
[1731335655400,0.72664737,82484.0,82458.0,0.05821098]
[1731335655617,0.72664737,82474.0,82467.0,0.002]
[1731335655820,0.121257,82469.0,82468.0,0.18414613]
[1731335656066,0.72664737,82458.0,82425.0,0.002]
[1731335656296,0.72664737,82474.0,82357.0,0.06598287]
[1731335656297,0.121272,82459.0,82458.0,1.27335263]
[1731335656504,0.72664737,82477.0,82458.0,1.27335263]
[1731335656707,0.15821169,82476.0,82459.0,0.72664737]
[1731335656898,0.15821169,82476.0,82458.0,1.27335263]
[1731335656899,0.005,82469.0,82458.0,1.27335263]
[1731335657137,0.126272,82459.0,82458.0,1.27335263]
[1731335657344,0.121268,82462.0,82458.0,1.27335263]
[1731335657546,0.121272,82459.0,82458.0,1.27335263]
[1731335657668,0.126272,82459.0,82458.0,1.27335263]
[1731335658045,0.27521421,82459.0,82458.0,1.27335263]
[1731335658294,0.37521421,82459.0,82458.0,1.27335263]
[1731335658495,0.226272,82459.0,82458.0,1.27335263]
[1731335658698,0.126272,82459.0,82458.0,1.27335263]
[1731335659349,0.35221421,82459.0,82458.0,1.27335263]
[1731335660230,0.37521421,82459.0,82458.0,1.19525263]
[1731335660436,0.126306,82436.0,82435.0,0.18190969]
[1731335660637,0.25224821,82436.0,82435.0,0.18190969]
[1731335660766,0.005,82418.0,82414.0,0.002]
[1731335660977,0.005,82410.0,82407.0,0.002]
[1731335661178,0.005,82410.0,82371.0,0.007]
[1731335661179,0.005,82404.0,82375.0,0.18190969]
[1731335661392,0.005,82399.0,82386.0,0.002]
[1731335661597,0.005,82387.0,82374.0,0.006374]
[1731335661803,0.121396,82375.0,82374.0,0.001374]
[1731335661968,0.005,82387.0,82376.0,0.002]
[1731335662208,0.242727,82397.0,82374.0,0.0038019]
[1731335662209,0.126396,82375.0,82374.0,0.001374]
[1731335662683,0.005,82375.0,82374.0,0.001374]
[1731335662900,0.18190969,82394.0,82388.0,0.002]
[1731335663102,0.005,82391.0,82388.0,0.002]
[1731335663331,0.18190969,82394.0,82374.0,0.001374]
[1731335663332,0.005,82383.0,82374.0,0.001374]
[1731335663712,0.121392,82378.0,82374.0,0.001374]
[1731335663914,0.242739,82393.0,82374.0,0.001374]
[1731335663915,0.121396,82375.0,82374.0,0.001374]
[1731335664130,0.25233821,82375.0,82374.0,0.001374]
[1731335664345,0.25537336,82375.0,82374.0,0.001374]
[1731335664551,0.005,82368.0,82367.0,0.0821]
[1731335664785,0.121431,82351.0,82350.0,0.05018]
[1731335665004,0.126431,82351.0,82350.0,0.05018]
[1731335665221,0.121431,82351.0,82350.0,0.05018]
[1731335665431,0.06124776,82351.0,82350.0,0.05018]
[1731335665640,0.05821169,82351.0,82350.0,0.05018]
[1731335665834,0.18190969,82365.0,82350.0,0.05018]
[1731335665835,0.005,82377.0,82365.0,0.005]
[1731335666041,0.005,82370.0,82365.0,0.005]
[1731335666251,0.24583421,82373.0,82350.0,0.05018]
[1731335666252,0.121424,82356.0,82350.0,0.05018]
[1731335666455,0.25,82385.0,82350.0,0.05018]
[1731335666456,0.18190969,82354.0,82350.0,0.05018]
[1731335666684,0.121431,82351.0,82350.0,0.05018]
[1731335666890,0.126431,82351.0,82350.0,0.05018]
[1731335667111,0.18190969,82363.0,82350.0,0.05018]
[1731335667112,0.005,82369.0,82368.0,0.002]
[1731335667356,0.18190969,82407.0,82365.0,0.005]
[1731335667357,0.121386,82382.0,82365.0,0.005]
[1731335667569,0.005,82403.0,82386.0,0.005]
[1731335667785,0.18190969,82407.0,82372.0,0.002]
[1731335667786,0.30328769,82387.0,82372.0,0.002]
[1731335668018,0.00303467,82386.0,82377.0,0.002]
[1731335668274,0.18190969,82384.0,82377.0,0.002]
[1731335668516,0.18190969,82384.0,82381.0,0.005]
[1731335668728,0.242755,82388.0,82361.0,0.0455]
[1731335668729,0.18190969,82383.0,82376.0,0.002]
[1731335668969,0.00303455,82383.0,82381.0,0.002]
[1731335669196,0.00303468,82396.0,82381.0,0.002]
[1731335669412,0.18190969,82396.0,82389.0,0.005]
[1731335669911,0.18190969,82396.0,82388.0,0.007]
[1731335669912,0.1094216,82396.0,82388.0,0.007]
[1731335670142,0.00303413,82395.0,82394.0,0.002]
[1731335670350,0.121368,82394.0,82392.0,0.002]
[1731335670581,0.00303425,82393.0,82380.0,0.002]
[1731335670786,0.00303425,82393.0,82353.0,0.005]
[1731335670787,0.12897646,82393.0,82363.0,0.002]
[1731335671007,0.121418,82360.0,82350.0,1.05218]
[1731335671216,0.242777,82380.0,82355.0,0.18190969]
[1731335671427,0.18190969,82368.0,82350.0,1.05018]
[1731335671638,0.25,82376.0,82350.0,1.05018]
[1731335671639,0.121431,82351.0,82350.0,1.05018]
[1731335671843,0.242856,82353.0,82350.0,1.05018]
[1731335672019,0.121431,82351.0,82350.0,1.05018]
[1731335672221,0.18190969,82368.0,82350.0,1.05018]
[1731335672222,0.242845,82357.0,82350.0,1.05018]
[1731335672434,0.18190969,82368.0,82351.0,0.005]
[1731335672636,0.18190969,82359.0,82350.0,1.05018]
[1731335672838,0.12594221,82358.0,82350.0,1.05018]
[1731335673043,0.12142,82359.0,82350.0,1.05018]
[1731335673322,0.18190969,82357.0,82351.0,0.005]
[1731335673493,0.18190969,82357.0,82350.0,1.05018]
[1731335673494,0.0030355,82363.0,82356.0,0.005]
[1731335673698,0.18190969,82360.0,82359.0,0.005]
[1731335673904,0.18190969,82369.0,82359.0,0.005]
[1731335674105,0.12897782,82368.0,82359.0,0.005]
[1731335674322,0.242832,82362.0,82350.0,1.05018]
[1731335674529,0.25,82399.0,82356.0,0.005]
[1731335674530,0.00303592,82367.0,82356.0,0.005]
[1731335674831,3.25158926,82409.0,82356.0,0.005]
[1731335674832,0.3078519,82366.0,82356.0,0.005]
[1731335674966,0.121422,82357.0,82356.0,0.005]
[1731335675172,0.121422,82357.0,82350.0,1.05018]
[1731335675173,0.242848,82356.0,82350.0,1.05018]
[1731335675373,0.023,82364.0,82350.0,1.05018]
[1731335675374,0.144431,82351.0,82350.0,1.05018]
[1731335675590,0.27340946,82351.0,82350.0,1.05018]
[1731335675976,0.242779,82380.0,82355.0,0.005]
[1731335676200,0.25,82384.0,82359.0,0.005]
[1731335676201,0.18190969,82370.0,82359.0,0.005]
[1731335676417,0.18190969,82368.0,82366.0,0.002]
[1731335676629,0.00303529,82367.0,82363.0,0.005]
[1731335676839,0.00303515,82374.0,82366.0,0.002]
[1731335677078,0.489266,82384.0,82367.0,0.005]
[1731335677079,0.18190969,82368.0,82367.0,0.005]
[1731335677289,0.2465,82384.0,82375.0,0.005]
[1731335677466,0.18190969,82376.0,82375.0,0.005]
[1731335677710,0.00303468,82387.0,82375.0,0.005]
[1731335677923,0.18190969,82379.0,82375.0,0.005]
[1731335678140,0.00303472,82378.0,82369.0,0.005]
[1731335678397,0.00303472,82378.0,82363.0,0.002]
[1731335678398,0.00303472,82378.0,82375.0,0.005]
[1731335678605,0.00303517,82382.0,82375.0,0.005]
[1731335678812,0.18190969,82387.0,82363.0,0.002]
[1731335678813,0.18190969,82376.0,82369.0,0.005]
[1731335679011,0.12897749,82375.0,82365.0,0.005]
[1731335679226,0.18190969,82374.0,82359.0,0.005]
[1731335679446,0.25,82385.0,82357.0,0.005]
[1731335679447,0.12897802,82373.0,82357.0,0.005]
[1731335679655,0.12897802,82373.0,82352.0,0.242859]
[1731335679656,0.1214,82372.0,82363.0,0.005]
[1731335679866,0.18190969,82378.0,82375.0,0.121395]
[1731335680079,0.18190969,82389.0,82382.0,0.121385]
[1731335680287,0.18190969,82389.0,82383.0,0.005]
[1731335680500,0.18190969,82389.0,82388.0,0.002]
[1731335680750,0.18190969,82389.0,82381.0,0.005]
[1731335681000,0.18190969,82389.0,82360.0,0.005]
[1731335681001,0.12594221,82388.0,82373.0,0.002]
[1731335681204,0.00303491,82387.0,82373.0,0.002]
[1731335681425,0.18190969,82397.0,82373.0,0.002]
[1731335681426,0.00303491,82391.0,82384.0,0.005]
[1731335681647,0.18190969,82395.0,82350.0,1.05018]
[1731335681648,0.121412,82364.0,82350.0,1.05018]
[1731335681846,0.121416,82361.0,82360.0,0.18190969]
[1731335682053,0.121431,82351.0,82350.0,1.05018]
[1731335682494,0.12446726,82351.0,82350.0,1.05018]
[1731335682690,0.27340947,82351.0,82350.0,1.05018]
[1731335683321,0.25040947,82351.0,82350.0,1.05018]
[1731335683526,0.27340947,82351.0,82350.0,1.05018]
[1731335684023,0.144438,82346.0,82324.0,0.005]
[1731335684229,0.023,82345.0,82315.0,0.18190969]
[1731335684436,0.12594221,82342.0,82321.0,0.005]
[1731335684640,0.121486,82314.0,82313.0,0.005]
[1731335684861,0.02551309,82334.0,82313.0,0.005]
[1731335685067,0.18190969,82325.0,82313.0,0.005]
[1731335685281,0.02551309,82334.0,82313.0,0.005]
[1731335685282,0.00303751,82324.0,82313.0,0.005]
[1731335685483,0.12897972,82324.0,82313.0,0.005]
[1731335685683,0.18190969,82323.0,82313.0,0.126486]
[1731335685908,0.00303721,82322.0,82313.0,0.005]
[1731335686115,0.00303721,82322.0,82315.0,0.121484]
[1731335686337,0.00303717,82327.0,82326.0,0.005]
[1731335686537,0.8685,82353.0,82308.0,0.011372]
[1731335686538,0.00303648,82340.0,82333.0,0.005]
[1731335686953,0.121467,82327.0,82326.0,0.001629]
[1731335687156,0.00303648,82340.0,82309.0,0.001629]
[1731335687157,0.253371,82337.0,82309.0,0.001629]
[1731335687362,0.121466,82328.0,82320.0,0.002]
[1731335687563,0.3035,82350.0,82320.0,0.002]
[1731335687564,0.18190969,82342.0,82326.0,0.001629]
[1731335687765,0.18190969,82342.0,82328.0,0.001629]
[1731335687766,0.18190969,82332.0,82328.0,0.001629]
[1731335687989,1.75,82349.0,82328.0,0.001629]
[1731335687990,1.5,82349.0,82330.0,0.18190969]
[1731335688189,1.5,82349.0,82308.0,0.18328169]
[1731335688190,0.18190969,82358.0,82352.0,0.001629]
[1731335688410,0.18190969,82358.0,82348.0,0.242871]
[1731335688694,0.18190969,82361.0,82360.0,0.123047]
[1731335689113,0.16354135,82362.0,82361.0,0.123045]
[1731335689342,0.0351318,82524.0,82361.0,0.123045]
[1731335689343,0.24271,82403.0,82370.0,0.001629]
[1731335689558,0.24271,82403.0,82353.0,0.242856]
[1731335689559,0.18190969,82365.0,82353.0,0.242856]
[1731335689790,0.12594221,82377.0,82367.0,0.001629]
[1731335690038,0.18190969,82368.0,82351.0,0.002]
[1731335690248,0.242818,82366.0,82349.0,0.001629]
[1731335690472,0.00303593,82365.0,82359.0,0.03]
[1731335690704,0.18190969,82364.0,82359.0,0.031629]
[1731335690934,0.18190969,82363.0,82359.0,0.031629]
[1731335691157,0.3108875,82363.0,82359.0,0.03]
[1731335691380,0.1849454,82362.0,82359.0,0.03]
[1731335691592,0.121418,82360.0,82359.0,0.03]
[1731335691801,0.121418,82360.0,82333.0,0.001629]
[1731335691802,0.15155486,82360.0,82333.0,0.001629]
[1731335692025,0.15155486,82360.0,82344.0,0.001629]
[1731335692026,0.14851873,82359.0,82344.0,0.001629]
[1731335692244,0.18190969,82357.0,82348.0,0.001629]